Cogmind - Beta 13 @@@ ROGUE MODE // 2024.04.20 @ 14:15:27 Player: Occam Result: Destroyed by 8R-AWN with 8R-AWN's Boregun Performance ------------- Evolutions (0) 0 Regions Visited (3) 600 Robots Destroyed (32) 160 Value Destroyed (437) 437 Prototype IDs (26) 520 Alien Tech Used (0) 0 Bonus (300) 300 TOTAL SCORE: 2017 Bonus ------- Aligned with FarCom 300 Cogmind --------- Core Integrity 0/250 Matter 300/300 Energy 125/125 System Corruption 0% Temperature Cool (0) Movement Core (800) Ox15 Location -10/Exiles Parts ------- > --- POWER (1) -------- Light Ion Engine > --- PROPULSION (2) --- Light Treads > --- UTILITY (2) ------ High-capacity Storage Unit Seismic Detector > --- WEAPON (2) ------- Light Assault Rifle Light Assault Rifle > --- INVENTORY (20) --- Armored Wheel Armored Wheel Armored Wheel Improved Assault Rifle Improved Assault Rifle Grenade Launcher Peak State ------------ > --- POWER ------------ Ion Engine > --- PROPULSION ------- Light Treads Armored Wheel > --- UTILITY ---------- High-capacity Storage Unit Seismic Detector > --- WEAPON ----------- Improved Assault Rifle Improved Assault Rifle > --- INVENTORY -------- Light Ion Engine Reinforced Deuterium Engine Fission Core Light Fission Core Light Treads Light Treads Armored Wheel Armored Wheel Armored Wheel High-capacity Matter Pod Structural Scanner Structural Scanner Hacking Suite Light Assault Rifle Light Assault Rifle Light Assault Rifle Improved Assault Rifle Improved Assault Rifle Grenade Launcher Datajack [Rating: 16] Favorites ----------- Power Ion Engine Engine Ion Engine Propulsion Light Treads Treads Light Treads Leg Aluminum Leg Wheel Armored Wheel Utility Seismic Detector Device Seismic Detector Storage High-capacity Storage Unit Weapon Improved Assault Rifle Energy Gun Medium Laser Ballistic Gun Improved Assault Rifle Launcher Grenade Launcher Build | -11 -10 -10 -10 ------- Run | Yrd Mat Min Exi Slots Evolved . | . . . . Power . | . . . . Propulsion . | . . . . Utility . | . . . . Weapon . | . . . . Parts Attached 22 | 2 10 1 9 Power 2 | . 1 . 1 Engine 2 | . 1 . 1 Core . | . . . . Reactor . | . . . . Propulsion 7 | . 4 . 3 Treads 4 | . 2 . 2 Leg . | . . . . Wheel 3 | . 2 . 1 Hover . | . . . . Flight . | . . . . Utility 3 | 1 2 . . Device 1 | 1 . . . Storage 2 | . 2 . . Processor . | . . . . Hackware . | . . . . Protection . | . . . . Artifact . | . . . . Weapon 10 | 1 3 1 5 Energy Gun 1 | 1 . . . Energy Cannon . | . . . . Ballistic Gun 7 | . 2 1 4 Ballistic Cannon . | . . . . Launcher 2 | . 1 . 1 Special Weapon . | . . . . Impact Weapon . | . . . . Slashing Weapon . | . . . . Piercing Weapon . | . . . . Special Melee Weapon . | . . . . Unidentified Prototypes 1 | . 1 . . Parts Lost 7 | . . . 7 Power 1 | . . . 1 Propulsion 3 | . . . 3 Utility . | . . . . Weapon 3 | . . . 3 Highest Loss Streak 7 | . . . 7 To Critical Strikes 7 | . . . 7 Average Slot Usage (%) 99 | . 99 100 99 Engine 14 | . 14 14 14 Treads 14 | . 13 14 15 Wheel 13 | . 13 14 12 Device 14 | . 14 14 14 Storage 14 | . 14 14 14 Ballistic Gun 25 | . 27 17 27 Launcher 2 | . . 10 . Naked Turns . | . . . . Heaviest Build 52 | 12 52 52 52 Greatest Support 20 | 20 20 12 12 Greatest Overweight (x) 4 | . 4 4 4 Average Overweight (x) 3 | . 2 4 4 Largest Inventory Capacity 20 | 8 20 20 20 Average Capacity 17 | 8 15 20 20 Most Carried 20 | 7 17 17 20 Average Carried 15 | 6 13 17 16 Final Capacity 20 | 8 20 20 20 Final Carried 17 | 7 17 17 6 Class Distribution -------------------- 100% | Mutant Dominant Class ---------------- Mutant | -10/Materials Mutant | -10/Mines Mutant | -10/Exiles Resources | -11 -10 -10 -10 ----------- Run | Yrd Mat Min Exi Matter Collected 1145 | 216 517 150 262 Remotely . | . . . . Salvage Created 769 | 79 529 156 5 Parts 60 | 4 45 11 . Haulers Intercepted 1 | . 1 . . Recyclers Shooed 1 | . 1 . . Parts Field Recycled . | . . . . Retrieved Matter . | . . . . Parts Self-Destructed . | . . . . Prevented . | . . . . Kills | -11 -10 -10 -10 ------- Run | Yrd Mat Min Exi Combat Hostiles Destroyed 20 | . 10 9 1 Guns 13 | . 10 3 . AOE 7 | . . 6 1 Classes Destroyed 8 | 2 5 . 1 Tunneler 4 | 1 3 . . Hauler 1 | . 1 . . Recycler 3 | 1 2 . . Operator 2 | . 2 . . Watcher 3 | . 3 . . Swarmer 15 | . 9 6 . Grunt 4 | . 1 3 . Assembled 1 | . . . 1 Best Kill Streak 6 | 1 4 6 1 Combat Bots Only 6 | . 4 6 1 Max Kills in Single Turn 5 | 1 2 5 1 Gunslinging . | . . . . Exploded 5 | . . 5 1 Melee . | . . . . Uniques/NPCs Destroyed . | . . . . Combat | -11 -10 -10 -10 -------- Run | Yrd Mat Min Exi Hostile Shots Fired 108 | . 41 15 52 Missed 24 | . 15 2 7 Damage Taken 1154 | . 212 145 797 Core 264 | . 6 22 236 Absorbed by Shields . | . . . . Core Remaining (%) 100 | 100 . . . Volleys Fired 101 | 7 56 16 22 Largest 2 | 2 2 2 2 Hottest 70 | 70 46 46 46 Shots Fired 196 | 14 112 27 43 Gun 192 | 14 112 24 42 Cannon . | . . . . Launcher 4 | . . 3 1 Special . | . . . . Kinetic 185 | 7 112 24 42 Thermal 7 | 7 . . . Explosive 4 | . . 3 1 Electromagnetic . | . . . . Robot Hit Streak 16 | 4 8 16 11 Robot Miss Streak 5 | 4 4 5 1 Penetration Max . | . . . . Secondary Targets 1 | . . 1 . Max Gunslinging Chain 1 | . . 1 . Shots Hit Robots 115 | 6 58 18 33 Core Hits 47 | 3 24 14 6 Critical Kills 1 | . 1 . . Critical Parts Destroyed . | . . . . Critical Strikes 1 | . 1 . . Destroy 1 | . 1 . . Melee Attacks . | . . . . Impact . | . . . . Slashing . | . . . . Piercing . | . . . . Sneak Attacks . | . . . . Combat Hostiles . | . . . . Follow-up Attacks . | . . . . Damage Inflicted 1970 | 79 967 553 371 Guns 1635 | 79 967 256 333 Cannons . | . . . . Explosions 335 | . . 297 38 Melee . | . . . . Ramming . | . . . . Kinetic 1585 | 29 967 256 333 Thermal 50 | 50 . . . Explosive 335 | . . 297 38 Electromagnetic . | . . . . Impact . | . . . . Slashing . | . . . . Piercing . | . . . . Highest Corruption . | . . . . Average Corruption . | . . . . Corruption Purged . | . . . . Corruption Blocked . | . . . . Overload Shots . | . . . . Overflow Damage . | . . . . Projectiles . | . . . . Explosions . | . . . . Melee . | . . . . Knockbacks . | . . . . Impact . | . . . . Kinetic . | . . . . Secondary . | . . . . Self-Inflicted Damage 18 | . . 18 . Shots 1 | . . 1 . Rammed . | . . . . Targets Rammed . | . . . . Kicked . | . . . . Crushed . | . . . . Highest Temperature 60 | 60 . . 2 Average Temperature 24 | 26 . . 1 Received Heat Transfer 72 | . 24 48 . Siege Activations . | . . . . Robots Corrupted . | . . . . Combat Hostiles . | . . . . Parts Fried . | . . . . Impact Corruptions . | . . . . Robots Melted . | . . . . Combat Hostiles . | . . . . Parts Melted . | . . . . Heat Transferred 148 | 148 . . . Parts Sabotaged . | . . . . Parts Stolen . | . . . . Parts Stripped . | . . . . Power Chain Reactions . | . . . . Alert | -11 -10 -10 -10 ------- Run | Yrd Mat Min Exi Peak Influence 253 | 10 253 201 . Initial 30 | . 6 30 . Average 77 | 3 98 42 . Maximum Alert Level 1 | . 1 1 . Low Security (%) 84 | 100 77 96 . Level 1 15 | . 22 3 . Level 2 . | . . . . Level 3 . | . . . . Level 4 . | . . . . Level 5 . | . . . . High Security . | . . . . Max Security . | . . . . Squads Dispatched 1 | . 1 . . Investigation . | . . . . Extermination . | . . . . Reinforcement 1 | . 1 . . Assault . | . . . . Garrison . | . . . . Intercept . | . . . . Searches Triggered . | . . . . Construction Impeded . | . . . . Haulers Reinforced . | . . . . Active Scanning Responses . | . . . . Cargo Convoy Interrupts . | . . . . Stealth | -11 -10 -10 -10 --------- Run | Yrd Mat Min Exi Distress Signals . | . . . . Communications Jammed . | . . . . Distress Signals . | . . . . Times Spotted 37 | . 25 9 3 Peak Tracking Total 11 | . 3 6 11 Tactical Retreats 4 | . 2 1 1 Traps | -11 -10 -10 -10 ------- Run | Yrd Mat Min Exi Traps Triggered . | . . . . Indirectly . | . . . . Trap Hack Attempts . | . . . . Triggered . | . . . . Disarmed . | . . . . Reprogrammed . | . . . . Reused . | . . . . Traps Extracted . | . . . . Installed . | . . . . Triggered . | . . . . Machines | -11 -10 -10 -10 ---------- Run | Yrd Mat Min Exi Machines Disabled 3 | . . 1 2 Max in Single Turn 1 | . . 1 1 Machines Repaired . | . . . . Machines Dismantled . | . . . . Machines Sabotaged . | . . . . Overloaded Fab Kills . | . . . . Hacking | -11 -10 -10 -10 --------- Run | Yrd Mat Min Exi Machines Accessed 11 | . 8 1 2 Terminals 8 | . 7 1 . Fabricators . | . . . . Repair Stations . | . . . . Recycling Units 1 | . 1 . . Scanalyzers . | . . . . Garrison Access . | . . . . Total Hacks 33 | . 26 5 2 Successful 17 | . 13 2 2 Failed 15 | . 12 3 . Catastrophic . | . . . . Database Lockouts 1 | . 1 . . Manual 22 | . 21 . 1 Terminals 29 | . 24 5 . Fabricators . | . . . . Repair Stations . | . . . . Recycling Units 2 | . 2 . . Scanalyzers . | . . . . Garrison Access . | . . . . Terminal Hacks 10 | . 6 2 2 Record 2 | . . 1 1 Robot Analysis 3 | . 3 . . Prototype ID Bank 1 | . 1 . . Branch Access Points 1 | . 1 . . Alert Level 1 | . 1 . . Zone Layout 1 | . . 1 . Derelict Proto ID Bank 1 | . . . 1 Fabricator Hacks . | . . . . Repair Station Hacks . | . . . . Recycling Unit Hacks . | . . . . Scanalyzer . | . . . . Garrison Access Hacks . | . . . . Unauthorized Hacks 7 | . 7 . . Terminals 6 | . 6 . . Assimilate 2 | . 2 . . Botnet 3 | . 3 . . Operators 1 | . 1 . . Fabricators . | . . . . Repair Stations . | . . . . Recycling Units 1 | . 1 . . Mask 1 | . 1 . . Scanalyzers . | . . . . Garrison Access . | . . . . Data Cores Recovered . | . . . . Used . | . . . . Hacking Detections 8 | . 7 1 . Full Trace Events 1 | . 1 . . Feedback Events . | . . . . Feedback Blocked . | . . . . Robot Schematics Acquired . | . . . . Robots Built . | . . . . Authchips . | . . . . Time . | . . . . Total Robot Build Rating . | . . . . Part Schematics Acquired . | . . . . Parts Built . | . . . . Authchips . | . . . . Time . | . . . . Total Part Build Rating . | . . . . Parts Repaired . | . . . . Time . | . . . . Parts Recycled . | . . . . Recycled Matter . | . . . . Retrieved Matter . | . . . . Retrieved Components . | . . . . Parts Scanalyzed . | . . . . Part Schematics Acquired . | . . . . Parts Damaged . | . . . . Bothacking | -11 -10 -10 -10 ------------ Run | Yrd Mat Min Exi Used RIF Installer . | . . . . Robots Hacked . | . . . . Non-combat . | . . . . Combat . | . . . . Robot Hacks Applied . | . . . . Relay Couplers Released . | . . . . Fabnet Peak Effective % . | . . . . Robots Rewired . | . . . . Allies Hacked . | . . . . Hacks Repelled . | . . . . Allies | -11 -10 -10 -10 -------- Run | Yrd Mat Min Exi Total Allies 2 | . 1 1 . Largest Group 2 | . 1 2 1 Highest-Rated Group 41 | . 10 41 10 Highest-Rated Ally 31 | . 10 31 10 Total Orders 1 | . . . 1 STAY 1 | . . . 1 Ally Attacks . | . . . . Total Damage . | . . . . Kills . | . . . . Allies Corrupted . | . . . . Allies Melted . | . . . . Intel | -11 -10 -10 -10 ------- Run | Yrd Mat Min Exi Robot Analysis Total 3 | . 3 . . Derelict Logs Recovered 1 | . . 1 . Drone Launches . | . . . . Drone Recoveries . | . . . . Exploration | -11 -10 -10 -10 ------------- Run | Yrd Mat Min Exi Turns Passed 2567 | 65 1168 571 763 Spaces Moved 1541 | 28 746 351 416 Core . | . . . . Treads 4 | . 4 . . Legs 32 | 28 4 . . Wheels 1505 | . 738 351 416 Hover . | . . . . Flight . | . . . . Fastest Speed 105 | 120 105 150 150 Average Speed 136 | 120 123 150 150 Slowest Speed 160 | 120 160 150 150 Overloaded Moves . | . . . . Propulsion Burnouts . | . . . . Robots Hopped . | . . . . Cave-ins Triggered . | . . . . Exploration Rate (%) 66 | 3 98 95 70 Regions Visited 3 Branch Regions 2 Pre-discovered Areas 2 | . . 1 1 Known Exits Taken 1 | . 1 . . Unknown Exits Taken 2 | 1 . 1 . Scrap Searched 1 | . . 1 . Spaces Dug . | . . . . Terrain Destroyed 23 | . . 20 3 Melee . | . . . . Projectile . | . . . . AOE 23 | . . 20 3 Terrain Rammed . | . . . . Walls Destroyed . | . . . . Machines Disabled . | . . . . Actions | -11 -10 -10 -10 --------- Run | Yrd Mat Min Exi Total 1824 | 47 887 368 522 Wait 116 | 9 46 1 60 Move 1538 | 27 745 350 416 Hop . | . . . . Pick Up 22 | 1 16 . 5 Fast Attach 4 | 1 3 . . Attach 8 | 1 1 . 6 Detach 3 | 1 2 . . Swap 10 | . 6 1 3 Drop 22 | . 12 . 10 Fire 101 | 7 56 16 22 Melee . | . . . . Ram . | . . . . Kick . | . . . . Crush . | . . . . Escape Stasis . | . . . . Rewire . | . . . . Trap . | . . . . Miscellaneous . | . . . . Route ------- -11/Scrapyard -10/Materials (discovered 5 exits: [*Mat x3] / *Min x2) -10/Mines (discovered 3 exits: [*Mat x2] / *Exi) -10/Exiles (discovered 1 exit: [*Min]) History --------- Turn | Location | Event 9 | -11/Scrapyard | Discovered new exit (range 3) 66 | -11/Scrapyard | Entered Materials 208 | -10/Materials | Discovered new exit (range 3) 313 | -10/Materials | Build established: Mutant 462 | -10/Materials | Discovered new exit (range 4) 822 | -10/Materials | Discovered new exit (range 16) 872 | -10/Materials | Discovered new exit (range 15) 894 | -10/Materials | Central database locked down 1055 | -10/Materials | Identified exit to Mines 1234 | -10/Materials | Entered Mines 1234 | -10/Mines | Accompanied by 1 ally 1275 | -10/Mines | Discovered new exit (range 7) 1544 | -10/Mines | Discovered new exit (range 15) 1771 | -10/Mines | Escorted by a lone wolf Derelict 1799 | -10/Mines | Deemed a non-threat by the Exiles lab entrance 1799 | -10/Mines | Discovered new exit (range 5) 1805 | -10/Mines | Entered Exiles 1805 | -10/Exiles | Accompanied by 2 allies 1846 | -10/Exiles | Met 8R-AWN 1870 | -10/Exiles | Met EX-HEX 1910 | -10/Exiles | Met EX-BIN 1931 | -10/Exiles | Aligned with FarCom system 1933 | -10/Exiles | Given EX-Vault access code 1967 | -10/Exiles | Opened EX-Vault 2000 | -10/Exiles | Warned to stay clear of 0b10 Research branches 2045 | -10/Exiles | Met EX-DEC 2053 | -10/Exiles | Learned location of Zion (-7) 2173 | -10/Exiles | Discovered new exit (range 14) 2420 | -10/Exiles | Attacked by the Exiles 2536 | -10/Exiles | Core integrity fell below 50% 2556 | -10/Exiles | Core integrity fell below 20% 2568 | -10/Exiles | Destroyed by 8R-AWN with 8R-AWN's Boregun Last Messages --------------- 02556_ Extracted 2 matter. 02557_ Penetrated by HV Slug. 02557_ Critical hit (Destroy). 02557_ Lgt. Assault Rifle destroyed. 02559_ Extracted 10 matter. 02559_ Penetrated by HV Slug. 02560_ Extracted 2 matter. 02562_ HV Slug penetrates Wall. 02562_ Penetrated by HV Slug. 02563_ Extracted 2 matter. 02564_ HV Slug penetrates Wall. 02564_ HV Slug penetrates Earth. 02564_ Penetrated by HV Slug. 02565_ Extracted 2 matter. 02567_ Wall collapses. 02568_ Extracted 2 matter. 02568_ Penetrated by HV Slug. 02568_ Critical hit (Destroy). 02568_ Arm. Wheel destroyed. 02568_ Penetrated by HV Slug. Map ----- +----------------------------------------------------+ | ?????????????????????????????????????????????????? | | ?????????#####???????????????????????????????????? | | ????????## ##??????????????????????????????????? | | ????????# #??????????????????????????????????? | | ????????# < #??????????????????????????????????? | | ????????# / ###????????????????????????????????? | | ????????# !! #????????????????????????????????? | | ????????# ! ##????????????????????????????????? | | ????????## #?????????????????????????????????? | | ?????????# ##????????????????????????????????? | | ?????????## #????????????#######?????????????? | | ??????????# #######??????#!!! "#?????????????? | | ??????????# #""##?????# "#?????????????? | | ??????????## #?????# "#?????????????? | | ???????????##" ##???## ""#????????????## | | ???????????#"" #####" ""#???????????? | | ???????????#### ##" ""#????????????" | | ??????????????## #"" ###????????????" | | ???????????????#"## #?????????????"" | | ???????????????####### ##????????????"" | | ?????????????????????### ###?????????? | | ???????????????########" #??????????" | | ???????????????# !!""""" g "#?????????# | | ???????????????#! "###"" % """##???### | | ???????????????#! ! #?##" * "#####X# | | ???????????????#! !@;#??#" | | ???????????????# !"""""";;;#??#"# * | | ???????????????########## ##??#### | | ????????????????????????# #??????### % | | ????????????????????????# #????????### | | ????????????????????????# #??????????## | | ????????????????????????# #???????????## | | ????????????????????????# #????????????##" | | ????????????????????????# #?????????????#""" | | ????????????????????????? ?????????????##" | | ????????????????????????? ?????????????#"" | | ????????????????????????? ????????????##""" | | ????????????????????????? ????????????#""" | | ????????????????????????? ????????????#""" | | ????????????????????????? ????????????#"" | | ????????????????????????? ????????????#""" | | ??????????????????????????????????????#"" | | ??????????????????????????????????????##"" | | ???????????????????????????????????????#"""" | | ???????????????????????????????????????## | | ????????????????????????????????????????#" | | ????????????????????????????????????????#"""" | | ????????????????????????????????????????#"" | | ????????????????????????????????????????#" | | ????????????????????????????????????????#""" | +----------------------------------------------------+ Best States ------------- Heat Dissipation 25 Energy Generation 10 Energy Capacity 250 Matter Stores 300 Matter Capacity 300 Sight Range 16 Terrain Scan Density 10 Evasion (%) 50 Recoil Reduction 2 Item Schematics ----------------- None Robot Schematics ------------------ None Fabricated ------------ Nothing Alien Tech Used ----------------- None Achievements -------------- None Challenges ------------ None Game ------ Seed FluxTachyonRedirector Manual? 0 Play Time 00:20:28 Cumulative 231.5 hours Start 2024.04.20 @ 13:57:03 End 2024.04.20 @ 14:15:27 Sessions 1 Manual Loads 0 Difficulty Rogue Special Mode None Game No. 150 Rogue 6 Adventurer 144 Explorer 0 Win Type - Total 4 Types 2/0/1/1/0/0/0/0/0 Lore% 63 Gallery% 74 Achievement% 62 Wizard Run 0 Options --------- Layout 0 ASCII 0 Keyboard 0 Movement Mouse Keybinds 0 Fullscreen 2 Font 20/SmallcapsGlow Map View 66x50 Zoom Use 0% Tactical HUD 1 Map Filters NONE Filters NONE Steam X RUN: 16954b68-48d0-40f1-bc09-efa82616f872